[Event "Turkish Super League 2019"]
[Site "Konya"]
[Date "2019.07.17"]
[Round "1"]
[White "Eren, Ataberk"]
[Black "Ozer, Omer Faruk"]
[Result "1-0"]
[ECO "E90"]
[WhiteElo "2295"]
[BlackElo "2369"]
[Annotator "NA"]
[PlyCount "113"]
[EventDate "2019.07.17"]
[EventType "team-tourn"]
[EventCountry "TUR"]
[SourceTitle "playchess.com"]
[Source "ChessBase"]
[SourceQuality "1"]
[TimeControl "40/5400+30:1800+30"]

1. d4 Nf6 2. c4 c5 3. d5 g6 4. Nc3 Bg7 5. e4 d6 6. Bd3 O-O 7. Nf3 e5 8. O-O Nh5 9. Re1 h6 10. a3 Nf4 11. Bf1 g5 12. h3 a6 13. Rb1 f5 14. Bxf4 exf4 15. exf5 Bxf5 16. Bd3 Nd7 17. Bxf5 Rxf5 18. Qc2 Rf7 19. Ne4 Nf8 20. b4 cxb4 21. axb4 a5 22. bxa5 Rxa5 23. Qb3 Qd7 24. Qb4 Ra4 25. Qb3 Ra5 {[%emt 1:34:31]} 26. Nfd2 {[%emt 1:36:36]} Bd4 {[%emt 0:05:18]} 27. Qb4 {[%emt 0:00:15]} Ra6 {[%emt 0:02:06]} 28. Nf3 {[%emt 0:00:04]} Rb6 {[%emt 0:01:33]} 29. Qa3 {[%emt 0:00:30]} Rxb1 {[%emt 0:00:30]} 30. Rxb1 {[%emt 0:00:00]} Be5 {[%emt 0:00:26]} 31. Rb6 {[%emt 0:04:37]} Qc7 {[%emt 0:00:26]} 32. Qb4 {[%emt 0:00:10]} Qe7 {[%emt 0:00:36]} 33. Nxd6 {[%emt 0:03:10]} Bxd6 {[%emt 0:00:22]} 34. Qxd6 {[%emt 0:00:24]} Qxd6 {[%emt 0:00:46]} 35. Rxd6 {[%emt 0:00:01]} Rc7 {[%emt 0:00:00]} 36. Ne5 {[%emt 0:00:20]} Kg7 {[%emt 0:00:39]} 37. h4 {[%emt 0:01:52]} Re7 {[%emt 0:00:08]} 38. Nf3 {[%emt 0:00:18]} g4 {[%emt 0:01:02]} 39. Nd4 {[%emt 0:00:10]} Re1+ {[%emt 0:00:52]} 40. Kh2 {[%emt 0:00:00]} Rc1 {[%emt 0:00:00]} 41. Nf5+ {[%emt 0:04:03]} Kh7 {[%emt 0:01:15]} 42. Rxh6+ {[%emt 0:00:30]} Kg8 {[%emt 0:00:00]} 43. Rb6 {[%emt 0:00:30]} Nd7 {[%emt 0:02:00]} 44. Rg6+ {[%emt 0:05:30]} Kh8 {[%emt 0:00:30]} 45. Rxg4 {[%emt 0:02:30]} Rxc4 {[%emt 0:00:00]} 46. Nd6 {[%emt 0:01:30]} Rb4 {[%emt 0:02:00]} 47. Nf7+ {[%emt 0:06:34]} Kh7 {[%emt 0:00:00]} 48. h5 {[%emt 0:00:00]} Nf6 {[%emt 0:00:00]} 49. Rg5 {[%emt 0:01:13]} f3 {[%emt 0:19:40]} 50. d6 {[%emt 0:05:24]} fxg2 {[%emt 0:06:27]} 51. h6 {[%emt 0:03:22]} Ng4+ {[%emt 0:00:27]} 52. Kxg2 {[%emt 0:00:14]} Nxh6 {[%emt 0:00:00]} 53. Nxh6 {[%emt 0:00:06]} Kxh6 {[%emt 0:00:32]} 54. Rd5 {[%emt 0:00:02]} Rg4+ {[%emt 0:00:09]} 55. Kf3 {[%emt 0:00:02]} Rg8 {[%emt 0:00:00]} 56. d7 {[%emt 0:00:07]} Rd8 {[%emt 0:00:12]} 57. Ke4 {[%emt 0:00:30]} 1-0

[Event "Turkish Super League 2019"]
[Site "Konya"]
[Date "2019.07.17"]
[Round "1"]
[White "Yildiz Kadioglu, Betul Cemre"]
[Black "Daulyte-Cornette, Deimante"]
[Result "1/2-1/2"]
[ECO "E48"]
[WhiteElo "2290"]
[BlackElo "2444"]
[Annotator "NA"]
[PlyCount "88"]
[EventDate "2019.07.17"]
[EventType "team-tourn"]
[EventCountry "TUR"]
[SourceTitle "playchess.com"]
[Source "ChessBase"]
[SourceQuality "1"]
[TimeControl "40/5400+30:1800+30"]

1. d4 Nf6 2. c4 e6 3. Nc3 Bb4 4. e3 O-O 5. Bd3 d5 6. Nge2 dxc4 7. Bxc4 e5 8. a3 Bd6 9. O-O Nc6 10. d5 Ne7 11. e4 Ng6 12. f3 Bc5+ 13. Kh1 a5 14. Qd3 Ne8 15. Be3 Bxe3 16. Qxe3 Nd6 17. Bd3 f5 18. Nb5 Nxb5 19. Bxb5 Bd7 20. Bc4 Kh8 21. exf5 Bxf5 22. Ng3 Qd6 23. Rac1 Nf4 24. Rfe1 Rae8 25. Qa7 Bd3 26. Qxa5 Bxc4 27. Rxc4 Nxd5 28. Ne4 {[%emt 1:30:21]} Qe6 {[%emt 1:39:02]} 29. Ng5 {[%emt 0:00:30]} Qd7 {[%emt 0:00:30]} 30. Rce4 {[%emt 0:01:45]} Rf5 {[%emt 0:01:35]} 31. Nh3 {[%emt 0:04:44]} h6 {[%emt 0:00:51]} 32. Qd2 {[%emt 0:01:42]} Qd6 {[%emt 0:02:01]} 33. Qc2 {[%emt 0:02:36]} Qd7 {[%emt 0:01:08]} 34. Nf2 {[%emt 0:00:58]} Nf6 {[%emt 0:00:45]} 35. Rc4 {[%emt 0:01:56]} c6 {[%emt 0:00:12]} 36. Ne4 {[%emt 0:01:23]} Nxe4 {[%emt 0:00:44]} 37. Rcxe4 {[%emt 0:00:37]} Rf4 {[%emt 0:00:51]} 38. Qe2 {[%emt 0:01:53]} Rxe4 {[%emt 0:00:34]} 39. Qxe4 {[%emt 0:00:02]} Qd5 {[%emt 0:00:37]} 40. h3 {[%emt 0:00:00]} Qxe4 {[%emt 0:00:00]} 41. Rxe4 {[%emt 0:06:03]} Kg8 {[%emt 0:10:40]} 42. f4 {[%emt 0:06:30]} Kf7 {[%emt 0:00:00]} 43. Kg1 {[%emt 0:04:26]} exf4 {[%emt 0:01:00]} 44. Rxf4+ {[%emt 0:00:06]} Kg6 {[%emt 0:01:30]} 1/2-1/2

[Event "Turkish Super League 2019"]
[Site "Konya"]
[Date "2019.07.17"]
[Round "1"]
[White "Keler, Faruk"]
[Black "Ozen, Deniz"]
[Result "1/2-1/2"]
[ECO "A07"]
[WhiteElo "2263"]
[BlackElo "2430"]
[Annotator "NA"]
[PlyCount "51"]
[EventDate "2019.07.17"]
[EventType "team-tourn"]
[EventCountry "TUR"]
[SourceTitle "playchess.com"]
[Source "ChessBase"]
[SourceQuality "1"]
[TimeControl "40/5400+30:1800+30"]

1. Nf3 Nf6 2. g3 d5 3. Bg2 c6 4. O-O Bg4 5. h3 Bxf3 6. Bxf3 e6 7. d4 Nbd7 8. Nd2 Be7 9. e4 dxe4 10. Nxe4 Nxe4 11. Bxe4 Nf6 12. Bg2 O-O 13. c3 h6 14. Re1 Qc7 {[%emt 0:22:00]} 15. Qf3 {[%emt 0:20:30]} Rad8 {[%emt 0:06:30]} 16. h4 {[%emt 0:03:30]} Rd7 {[%emt 0:11:30]} 17. b4 {[%emt 0:25:30]} a5 {[%emt 0:06:30]} 18. a3 {[%emt 0:00:00]} Ra8 {[%emt 0:01:30]} 19. Bf4 {[%emt 0:03:00]} Qd8 {[%emt 0:03:30]} 20. Bh3 {[%emt 0:03:30]} Nd5 {[%emt 0:06:30]} 21. Bd2 {[%emt 0:00:30]} Bf6 {[%emt 0:09:30]} 22. Qg4 {[%emt 0:20:30]} Kf8 {[%emt 0:09:30]} 23. Qe4 {[%emt 0:00:30]} Kg8 {[%emt 0:00:30]} 24. Qg4 {[%emt 0:00:00]} Kf8 {[%emt 0:02:30]} 25. Qe4 {[%emt 0:00:00]} Kg8 {[%emt 0:01:30]} 26. Qg4 {[%emt 0:00:00]} 1/2-1/2

[Event "Turkish Super League 2019"]
[Site "Konya"]
[Date "2019.07.17"]
[Round "1"]
[White "Akdogan, Alperen"]
[Black "Kamer, Kayra"]
[Result "1-0"]
[ECO "E92"]
[WhiteElo "2193"]
[BlackElo "2340"]
[Annotator "NA"]
[PlyCount "91"]
[EventDate "2019.07.17"]
[EventType "team-tourn"]
[EventCountry "TUR"]
[SourceTitle "playchess.com"]
[Source "ChessBase"]
[SourceQuality "1"]
[TimeControl "40/5400+30:1800+30"]

1. d4 Nf6 2. Nf3 g6 3. c4 Bg7 4. Nc3 O-O 5. e4 d6 6. h3 e5 7. d5 a5 8. Bg5 Na6 9. Be2 Qe8 10. Nd2 Nd7 11. a3 Nb6 12. b3 Bd7 13. O-O Nc5 14. Be3 f5 15. f3 f4 16. Bf2 g5 17. Qc2 h5 18. b4 axb4 19. axb4 Nca4 20. c5 Nxc3 21. Qxc3 Na4 22. Qd3 Qg6 23. c6 bxc6 24. dxc6 Be6 25. Qc2 g4 26. hxg4 hxg4 27. fxg4 Nb6 28. Bxb6 cxb6 29. c7 Rxa1 30. Rxa1 Kh7 31. Nf3 Qxg4 32. Nd4 f3 33. Bxf3 Qg6 34. Nxe6 Qxe6 35. Rc1 Rc8 36. Qc6 Bh6 37. Rc3 Bd2 38. Rc4 b5 39. Qxb5 {[%emt 1:19:30]} Ra8 {[%emt 1:20:30]} 40. c8=Q {[%emt 0:00:30]} Ra1+ {[%emt 0:00:30]} 41. Kf2 {[%emt 0:30:30]} Be3+ {[%emt 0:30:30]} 42. Ke2 {[%emt 0:00:30]} Ra2+ {[%emt 0:00:00]} 43. Kd3 {[%emt 0:04:30]} Rd2+ {[%emt 0:00:00]} 44. Kc3 {[%emt 0:01:30]} Qh6 {[%emt 0:00:00]} 45. Qbd7+ {[%emt 0:00:30]} Kg6 {[%emt 0:00:00]} 46. Qg8+ {[%emt 0:00:00]} 1-0

[Event "Turkish Super League 2019"]
[Site "Konya"]
[Date "2019.07.17"]
[Round "1"]
[White "Ozkan, Ervin"]
[Black "Dogan, Nazmi Can"]
[Result "1/2-1/2"]
[ECO "A41"]
[WhiteElo "2175"]
[BlackElo "2276"]
[Annotator "NA"]
[PlyCount "101"]
[EventDate "2019.07.17"]
[EventType "team-tourn"]
[EventCountry "TUR"]
[SourceTitle "playchess.com"]
[Source "ChessBase"]
[SourceQuality "1"]
[TimeControl "40/5400+30:1800+30"]

1. d4 g6 2. Nf3 Bg7 3. Bf4 d6 4. e3 Nd7 5. h3 e5 6. Bh2 Ne7 7. dxe5 dxe5 8. Nc3 O-O 9. Bc4 Nf5 10. O-O Nd6 11. Bb3 Re8 12. Qe2 Nc5 13. Rfd1 Nxb3 14. axb3 f6 15. Nd2 Qe7 16. Nc4 Nxc4 17. Qxc4+ Be6 18. Qe2 a6 19. Nd5 Qf7 20. e4 Rad8 21. Ne3 Qe7 22. Nd5 Qf7 23. Ne3 Rd4 24. f3 Red8 25. Bg3 Rxd1+ 26. Rxd1 Rxd1+ 27. Nxd1 Qd7 28. Bf2 Kf7 29. Be3 {[%emt 1:27:45]} Bf8 {[%emt 1:41:21]} 30. Nf2 {[%emt 0:00:30]} a5 {[%emt 0:00:30]} 31. Nd3 {[%emt 0:00:30]} b6 {[%emt 0:00:30]} 32. f4 {[%emt 0:00:30]} exf4 {[%emt 0:00:30]} 33. Nxf4 {[%emt 0:00:30]} Bd6 {[%emt 0:01:28]} 34. Nxe6 {[%emt 0:03:14]} Qxe6 {[%emt 0:00:06]} 35. Qd3 {[%emt 0:01:57]} Qe5 {[%emt 0:01:06]} 36. Bd4 {[%emt 0:02:07]} Qh2+ {[%emt 0:00:16]} 37. Kf1 {[%emt 0:00:29]} Qf4+ {[%emt 0:00:50]} 38. Ke2 {[%emt 0:01:16]} Kg7 {[%emt 0:00:26]} 39. Qe3 {[%emt 0:04:01]} Qh2 {[%emt 0:01:01]} 40. Qg5 {[%emt 0:00:00]} Be5 {[%emt 0:00:00]} 41. Bxe5 {[%emt 0:02:41]} Qxe5 {[%emt 0:02:26]} 42. Qxe5 {[%emt 0:01:30]} fxe5 {[%emt 0:00:00]} 43. c3 {[%emt 0:19:30]} Kf6 {[%emt 0:03:00]} 44. b4 {[%emt 0:03:12]} axb4 {[%emt 0:08:30]} 45. cxb4 {[%emt 0:00:06]} b5 {[%emt 0:10:12]} 46. g3 {[%emt 0:04:08]} Kg5 {[%emt 0:02:35]} 47. Kf3 {[%emt 0:00:38]} h6 {[%emt 0:00:33]} 48. Ke3 {[%emt 0:00:26]} Kf6 {[%emt 0:02:02]} 49. Kd3 {[%emt 0:00:56]} Ke6 {[%emt 0:00:39]} 50. g4 {[%emt 0:01:20]} Kd6 {[%emt 0:01:21]} 51. h4 {[%emt 0:01:47]} 1/2-1/2

[Event "Turkish Super League 2019"]
[Site "Konya"]
[Date "2019.07.17"]
[Round "1"]
[White "Tezcan, Emre"]
[Black "Olcum, Ahmet"]
[Result "0-1"]
[ECO "B06"]
[WhiteElo "2082"]
[BlackElo "2271"]
[Annotator "NA"]
[PlyCount "69"]
[EventDate "2019.07.17"]
[EventType "team-tourn"]
[EventCountry "TUR"]
[SourceTitle "playchess.com"]
[Source "ChessBase"]
[SourceQuality "1"]
[TimeControl "40/5400+30:1800+30"]

1. e4 d6 2. d4 g6 3. Nf3 Bg7 4. Nc3 a6 5. a4 Nc6 6. d5 Na5 7. Be3 c5 8. dxc6 bxc6 9. Bd4 e5 10. Be3 Be6 11. Ng5 Bc4 12. Bxc4 Nxc4 13. Bc1 h6 14. Nf3 Nf6 15. O-O O-O 16. b3 Na5 17. Ba3 Nb7 18. Qd3 Qc7 19. Rad1 Rfd8 20. Qc4 Na5 21. Qe2 d5 22. exd5 Nxd5 23. Ne4 f5 24. Nc5 Re8 25. b4 Nc3 26. Qe3 Nxd1 27. Rxd1 Nc4 28. Qb3 Qf7 {[%emt 1:31:22]} 29. Bc1 {[%emt 1:38:58]} Rad8 {[%emt 0:00:30]} 30. c3 {[%emt 0:00:30]} e4 {[%emt 0:00:30]} 31. Nd4 {[%emt 0:00:30]} e3 {[%emt 0:04:13]} 32. fxe3 {[%emt 0:02:37]} Nxe3 {[%emt 0:00:16]} 33. Qxf7+ {[%emt 0:01:11]} Kxf7 {[%emt 0:00:01]} 34. Bxe3 {[%emt 0:00:34]} Rxe3 {[%emt 0:00:15]} 35. Rc1 {[%emt 0:00:36]} 0-1

[Event "Turkish Super League 2019"]
[Site "Konya"]
[Date "2019.07.17"]
[Round "1"]
[White "Dolgun, Can"]
[Black "Ali Marandi, Cemil Can"]
[Result "1/2-1/2"]
[ECO "C10"]
[WhiteElo "2064"]
[BlackElo "2527"]
[Annotator "ChessBase"]
[PlyCount "142"]
[EventDate "2019.07.17"]
[EventType "team-tourn"]
[EventCountry "TUR"]
[SourceTitle "playchess.com"]
[Source "ChessBase"]
[SourceQuality "1"]
[TimeControl "40/5400+30:1800+30"]

1. e4 e6 2. d4 d5 3. Nc3 Nc6 4. Nf3 Nf6 5. Bg5 Be7 6. e5 Ne4 7. Bxe7 Qxe7 8. a3 Bd7 9. Bd3 Ng5 10. Be2 Nxf3+ 11. Bxf3 f6 12. exf6 Qxf6 13. Ne2 O-O-O 14. Qd2 e5 15. Bxd5 Nxd4 16. Nxd4 exd4 17. O-O-O Bg4 18. f3 Rxd5 19. fxg4 Rhd8 20. Rhf1 Qe6 21. Qf4 Re5 22. Kb1 c5 23. h3 Rd7 24. Qf8+ Kc7 25. Rf5 g6 26. Rxe5 Qxe5 27. Rf1 Re7 28. Kc1 a6 29. Qf4 Qxf4+ 30. Rxf4 Kd6 31. Kd2 Kd5 32. h4 {[%emt 1:43:11]} b5 {[%emt 1:27:57]} 33. Rf8 {[%emt 0:00:30]} Re4 {[%emt 0:00:30]} 34. Rd8+ {[%emt 0:00:30]} Kc6 {[%emt 0:00:30]} 35. Rc8+ {[%emt 0:00:30]} Kb6 {[%emt 0:00:30]} 36. Rb8+ {[%emt 0:00:30]} Kc7 {[%emt 0:00:30]} 37. Ra8 {[%emt 0:00:30]} Rxg4 {[%emt 0:00:00]} 38. Ra7+ {[%emt 0:02:26]} Kd6 {[%emt 0:00:00]} 39. Rxa6+ {[%emt 0:01:11]} Kd5 {[%emt 0:00:03]} 40. Ra5 {[%emt 0:00:00]} Rxg2+ {[%emt 0:00:38]} 41. Kd1 {[%emt 0:00:12]} Kc4 {[%emt 0:03:52]} 42. b3+ {[%emt 0:13:32]} Kc3 {[%emt 0:00:30]} 43. Rxb5 {[%emt 0:00:18]} Rd2+ {[%emt 0:00:30]} 44. Ke1 {[%emt 0:00:06]} Rxc2 {[%emt 0:00:00]} 45. Rxc5+ {[%emt 0:00:52]} Kxb3 {[%emt 0:00:00]} 46. Rd5 {[%emt 0:01:33]} Kc4 {[%emt 0:00:30]} 47. Rd7 {[%emt 0:00:39]} h5 {[%emt 0:00:30]} 48. a4 {[%emt 0:00:55]} Rh2 {[%emt 0:03:30]} 49. Rd6 {[%emt 0:02:28]} Rxh4 {[%emt 0:01:30]} 50. Rxg6 {[%emt 0:00:19]} Rh1+ {[%emt 0:00:30]} 51. Kd2 {[%emt 0:00:16]} h4 {[%emt 0:00:30]} 52. Rc6+ {[%emt 0:02:30]} Kd5 {[%emt 0:00:30]} 53. Rh6 {[%emt 0:01:06]} Ke4 {[%emt 0:06:30]} 54. a5 {[%emt 0:01:03]} Rh2+ {[%emt 0:00:30]} 55. Kc1 {[%emt 0:01:37]} Kf4 {[%emt 0:10:30]} 56. a6 {[%emt 0:03:12]} Kg5 {[%emt 0:00:30]} 57. a7 {[%emt 0:02:33]} Ra2 {[%emt 0:00:30]} 58. Rh7 {[%emt 0:00:07]} d3 {[%emt 0:00:00]} 59. Kd1 {[%emt 0:00:36]} Kg4 {[%emt 0:01:00]} 60. Rg7+ {[%emt 0:00:12]} Kf4 {[%emt 0:00:30]} 61. Rf7+ {[%emt 0:00:08]} Kg5 {[%emt 0:00:30]} 62. Rh7 {[%emt 0:00:24]} Kg4 {[%emt 0:00:30]} 63. Rg7+ {[%emt 0:00:04]} Kf3 {[%emt 0:00:00]} 64. Rf7+ {[%emt 0:00:10]} Ke3 {[%emt 0:01:00]} 65. Re7+ {[%emt 0:00:05]} Kf2 {[%emt 0:00:00]} 66. Rf7+ {[%emt 0:00:08]} Kg2 {[%emt 0:00:00]} 67. Rg7+ {[%emt 0:00:33]} Kh2 {[%emt 0:00:30]} 68. Ke1 {[%emt 0:00:00]} h3 {[%emt 0:00:30]} 69. Kd1 {[%emt 0:00:06]} Kh1 {[%emt 0:00:30]} 70. Ke1 {[%emt 0:00:15]} Re2+ {[%emt 0:03:30]} 71. Kd1 {[%emt 0:00:30]} Ra2 {[%emt 0:02:30]} 1/2-1/2

[Event "Turkish Super League 2019"]
[Site "Konya"]
[Date "2019.07.17"]
[Round "1"]
[White "Caglar, Ahmet Ata"]
[Black "Secer, Ata"]
[Result "1/2-1/2"]
[ECO "D12"]
[WhiteElo "2051"]
[BlackElo "2324"]
[Annotator "NA"]
[PlyCount "95"]
[EventDate "2019.07.17"]
[EventType "team-tourn"]
[EventCountry "TUR"]
[SourceTitle "playchess.com"]
[Source "ChessBase"]
[SourceQuality "1"]
[TimeControl "40/5400+30:1800+30"]

1. d4 d5 2. c4 c6 3. Nf3 Nf6 4. e3 Bf5 5. Nc3 e6 6. Nh4 Be4 7. f3 Bg6 8. Qb3 Qb6 9. Nxg6 hxg6 10. g3 Nbd7 11. Kf2 Qxb3 12. axb3 a6 13. Bd2 Bd6 14. cxd5 exd5 15. Bd3 O-O-O 16. Kg2 Kb8 17. e4 dxe4 18. fxe4 Nc5 19. dxc5 Bc7 20. Rad1 Rxd3 21. Bf4 Rxd1 22. Rxd1 Ng4 23. Rh1 Ne5 24. Rd1 Kc8 25. Na4 Rd8 {[%emt 1:32:48]} 26. Nb6+ {[%emt 1:37:20]} Bxb6 {[%emt 0:00:30]} 27. Rxd8+ {[%emt 0:00:30]} Kxd8 {[%emt 0:00:30]} 28. Bxe5 {[%emt 0:00:30]} Bxc5 {[%emt 0:00:30]} 29. Bxg7 {[%emt 0:00:30]} Ke7 {[%emt 0:00:30]} 30. Bc3 {[%emt 0:00:30]} Ke6 {[%emt 0:00:30]} 31. Kf3 {[%emt 0:00:30]} Be7 {[%emt 0:00:30]} 32. h4 {[%emt 0:00:30]} c5 {[%emt 0:00:00]} 33. Kg2 {[%emt 0:03:12]} b5 {[%emt 0:00:00]} 34. Kf3 {[%emt 0:00:53]} Bd8 {[%emt 0:03:09]} 35. Ke3 {[%emt 0:01:05]} a5 {[%emt 0:00:53]} 36. Kd3 {[%emt 0:00:47]} f5 {[%emt 0:04:01]} 37. Ke3 {[%emt 0:00:39]} Bc7 {[%emt 0:01:11]} 38. exf5+ {[%emt 0:00:21]} Kxf5 {[%emt 0:00:34]} 39. Kf3 {[%emt 0:00:03]} Ke6 {[%emt 0:01:12]} 40. g4 {[%emt 0:00:00]} a4 {[%emt 0:00:00]} 41. bxa4 {[%emt 0:01:10]} bxa4 {[%emt 0:00:42]} 42. Ke4 {[%emt 0:00:30]} Bd8 {[%emt 0:02:30]} 43. h5 {[%emt 0:03:30]} gxh5 {[%emt 0:00:30]} 44. gxh5 {[%emt 0:00:30]} Bg5 {[%emt 0:00:00]} 45. Kd3 {[%emt 0:00:30]} Kf5 {[%emt 0:03:00]} 46. Kc4 {[%emt 0:05:30]} Bc1 {[%emt 0:00:30]} 47. Kxc5 {[%emt 0:00:30]} Bxb2 {[%emt 0:00:30]} 48. Kd4 {[%emt 0:00:30]} 1/2-1/2

[Event "Turkish Super League 2019"]
[Site "Konya"]
[Date "2019.07.17"]
[Round "1"]
[White "Aydin, Hakan Arda"]
[Black "Tarlabasi, Emirhan"]
[Result "0-1"]
[ECO "C02"]
[WhiteElo "1956"]
[BlackElo "2352"]
[Annotator "NA"]
[PlyCount "58"]
[EventDate "2019.07.17"]
[EventType "team-tourn"]
[EventCountry "TUR"]
[SourceTitle "playchess.com"]
[Source "ChessBase"]
[SourceQuality "1"]
[TimeControl "40/5400+30:1800+30"]

1. e4 e6 2. d4 d5 3. e5 c5 4. c3 Nc6 5. Nf3 Bd7 6. Bd3 Qb6 7. Bc2 cxd4 8. cxd4 Nb4 9. Nc3 Nxc2+ 10. Qxc2 Ne7 11. O-O Nf5 12. Be3 Be7 13. Rac1 O-O 14. Kh1 Qa6 15. g4 Nxe3 16. fxe3 b5 17. a3 Qb7 18. h4 a5 19. Ng5 Bxg5 20. hxg5 b4 21. axb4 axb4 22. Nb1 Bb5 23. Rg1 Rac8 24. Qh2 Bd3 25. Nd2 b3 26. Kg2 Rc2 27. Rxc2 bxc2 28. b3 {[%emt 1:38:41]} Qe7 {[%emt 1:34:51]} 29. Qf4 {[%emt 0:02:31]} Qa3 {[%emt 0:00:44]} 0-1

[Event "Turkish Super League 2019"]
[Site "Konya"]
[Date "2019.07.17"]
[Round "1"]
[White "Ayan, Bengu Sena"]
[Black "Samani, Yamac"]
[Result "0-1"]
[ECO "A65"]
[WhiteElo "1885"]
[BlackElo "2266"]
[Annotator "NA"]
[PlyCount "64"]
[EventDate "2019.07.17"]
[EventType "team-tourn"]
[EventCountry "TUR"]
[SourceTitle "playchess.com"]
[Source "ChessBase"]
[SourceQuality "1"]
[TimeControl "40/5400+30:1800+30"]

1. d4 Nf6 2. c4 g6 3. f3 Bg7 4. e4 d6 5. Nc3 O-O 6. Be3 c5 7. d5 e6 8. Nge2 exd5 9. cxd5 Nbd7 10. Ng3 h5 11. Be2 h4 12. Nf1 Nh7 13. Qd2 Ne5 14. Bh6 f5 15. Bxg7 Kxg7 16. f4 Nf7 17. exf5 gxf5 18. O-O-O Re8 19. Rg1 Nf6 20. h3 Ne4 21. Qc2 Nxc3 22. Qxc3+ Qf6 23. Qd2 Re4 24. g4 fxg4 25. Bxg4 Kh8 26. Nh2 Qxf4 27. Rgf1 {[%emt 1:36:57]} Qxd2+ {[%emt 1:30:54]} 28. Rxd2 {[%emt 0:00:30]} Bxg4 {[%emt 0:00:30]} 29. Nxg4 {[%emt 0:00:30]} Ng5 {[%emt 0:00:30]} 30. Nf2 {[%emt 0:00:30]} Rf8 {[%emt 0:00:30]} 31. Rg1 {[%emt 0:00:30]} Rc4+ {[%emt 0:00:30]} 32. Kd1 {[%emt 0:00:30]} Nf3 {[%emt 0:00:30]} 0-1

[Event "Turkish Super League 2019"]
[Site "Konya"]
[Date "2019.07.18"]
[Round "2"]
[White "Rozum, Ivan"]
[Black "Selbes, Tarik"]
[Result "1-0"]
[ECO "A87"]
[WhiteElo "2583"]
[BlackElo "2342"]
[Annotator "ChessBase"]
[PlyCount "69"]
[EventDate "2019.07.17"]
[EventType "team-tourn"]
[EventCountry "TUR"]
[SourceTitle "playchess.com"]
[Source "ChessBase"]
[SourceQuality "1"]
[TimeControl "40/5400+30:1800+30"]

1. Nf3 d6 2. d4 f5 3. g3 Nf6 4. Bg2 g6 5. O-O Bg7 6. b3 O-O 7. Bb2 Qe8 8. c4 a5 9. Nc3 Bd7 10. a3 Na6 11. d5 Nc5 12. Nd4 c6 13. Qc2 e5 14. dxe6 Bxe6 15. Rad1 Bf7 16. Rfe1 Nfe4 17. Nxe4 Nxe4 18. Nf3 Bxb2 19. Qxb2 a4 20. bxa4 Qe7 21. Qb4 Ra6 22. Nd2 Nc5 23. a5 Rfa8 24. Qb1 Rxa5 25. e4 f4 26. gxf4 Rxa3 27. e5 Nd3 28. exd6 Qh4 29. Ne4 Nxf4 30. Qb2 Nxg2 31. Nf6+ Kf8 {[%emt 1:45:21]} 32. d7 {[%emt 1:42:00]} Nxe1 {[%emt 0:00:30]} 33. d8=Q+ {[%emt 0:00:30]} Rxd8 {[%emt 0:00:30]} 34. Rxd8+ {[%emt 0:00:30]} Kg7 {[%emt 0:00:30]} 35. Ng4+ {[%emt 0:00:30]} 1-0

[Event "Turkish Super League 2019"]
[Site "Konya"]
[Date "2019.07.18"]
[Round "2"]
[White "Mchedlishvili, Mikheil"]
[Black "Romanov, Evgeny"]
[Result "0-1"]
[ECO "A45"]
[WhiteElo "2571"]
[BlackElo "2582"]
[Annotator "ChessBase"]
[PlyCount "67"]
[EventDate "2019.07.17"]
[EventType "team-tourn"]
[EventCountry "TUR"]
[SourceTitle "playchess.com"]
[Source "ChessBase"]
[SourceQuality "1"]
[TimeControl "40/5400+30:1800+30"]

1. d4 Nf6 2. Bg5 Ne4 3. Bf4 c5 4. f3 Qa5+ 5. c3 Nf6 6. d5 d6 7. e4 g6 8. Nd2 Bg7 9. a4 O-O 10. Nc4 Qd8 11. Bd3 b6 12. Ne2 Ba6 13. O-O Nbd7 14. Ng3 Ne8 15. Qd2 Bxc4 16. Bxc4 a6 17. Bh6 Nc7 18. Bxg7 Kxg7 19. Be2 b5 20. b3 Rb8 21. a5 b4 22. c4 e5 23. dxe6 Nxe6 24. Qxd6 Nf6 25. Rfd1 Qxd6 26. Rxd6 Rfd8 27. Rxa6 Rd2 28. Rb6 Ra8 29. a6 Nd4 30. Bd1 Nd7 31. Rb7 Ne5 32. a7 Nd3 33. Nf1 Rxd1 34. Ra2 0-1

[Event "Turkish Super League 2019"]
[Site "Konya"]
[Date "2019.07.18"]
[Round "2"]
[White "Dastan, Muhammed Batuhan"]
[Black "Moiseenko, Vadim"]
[Result "1-0"]
[ECO "C55"]
[WhiteElo "2565"]
[BlackElo "2523"]
[Annotator "ChessBase"]
[PlyCount "77"]
[EventDate "2019.07.17"]
[EventType "team-tourn"]
[EventCountry "TUR"]
[SourceTitle "playchess.com"]
[Source "ChessBase"]
[SourceQuality "1"]
[TimeControl "40/5400+30:1800+30"]

1. e4 {[%emt 0:00:30]} e5 {[%emt 0:00:30]} 2. Nf3 {[%emt 0:00:30]} Nc6 {[%emt 0:00:30]} 3. Bc4 {[%emt 0:00:00]} Nf6 {[%emt 0:00:00]} 4. d3 {[%emt 0:00:00]} Be7 {[%emt 0:00:00]} 5. O-O {[%emt 0:00:00]} O-O {[%emt 0:00:30]} 6. h3 {[%emt 0:00:00]} d6 {[%emt 0:02:30]} 7. a4 {[%emt 0:00:00]} h6 {[%emt 0:01:30]} 8. Re1 {[%emt 0:03:00]} Kh8 {[%emt 0:00:30]} 9. Nc3 {[%emt 0:13:30]} Na5 {[%emt 0:12:30]} 10. Ba2 {[%emt 0:00:30]} c5 {[%emt 0:00:30]} 11. Nd5 {[%emt 0:17:30]} Nxd5 {[%emt 0:00:30]} 12. Bxd5 {[%emt 0:02:30]} Be6 {[%emt 0:06:30]} 13. c3 {[%emt 0:05:30]} Rc8 {[%emt 0:01:30]} 14. Bxe6 {[%emt 0:14:30]} fxe6 {[%emt 0:00:00]} 15. Be3 {[%emt 0:02:30]} b6 {[%emt 0:03:00]} 16. b4 {[%emt 0:12:30]} cxb4 {[%emt 0:01:30]} 17. cxb4 {[%emt 0:00:30]} Nc6 {[%emt 0:00:30]} 18. Qb3 {[%emt 0:00:30]} d5 {[%emt 0:15:30]} 19. b5 {[%emt 0:02:30]} Na5 {[%emt 0:00:30]} 20. Qa2 {[%emt 0:01:30]} Qd6 {[%emt 0:06:30]} 21. Rac1 {[%emt 0:06:01]} Nb7 {[%emt 0:06:30]} 22. Rxc8 {[%emt 0:02:09]} Rxc8 {[%emt 0:00:30]} 23. exd5 {[%emt 0:00:00]} exd5 {[%emt 0:00:30]} 24. d4 {[%emt 0:00:00]} exd4 {[%emt 0:00:30]} 25. Bxd4 {[%emt 0:02:36]} Rf8 {[%emt 0:11:30]} 26. Re5 {[%emt 0:00:31]} Rd8 {[%emt 0:01:30]} 27. Qe2 {[%emt 0:01:16]} Bf8 {[%emt 0:00:30]} 28. Re6 {[%emt 0:03:19]} Qf4 {[%emt 0:00:30]} 29. g3 {[%emt 0:00:02]} Qc1+ {[%emt 0:00:30]} 30. Kg2 {[%emt 0:00:00]} Nd6 {[%emt 0:00:00]} 31. Ne5 {[%emt 0:00:47]} Kg8 {[%emt 0:01:00]} 32. Qf3 {[%emt 0:03:34]} Qd2 {[%emt 0:04:30]} 33. Rxd6 {[%emt 0:03:20]} Rxd6 {[%emt 0:00:30]} 34. Qf7+ {[%emt 0:00:30]} Kh7 {[%emt 0:00:30]} 35. Nf3 {[%emt 0:00:18]} Qc2 {[%emt 0:01:30]} 36. Qxf8 {[%emt 0:00:05]} Rg6 {[%emt 0:00:00]} 37. Qf4 {[%emt 0:01:54]} Qxa4 {[%emt 0:00:00]} 38. Qf5 {[%emt 0:00:57]} Qxb5 {[%emt 0:00:30]} 39. h4 {[%emt 0:00:16]} 1-0